fUSD/lending_fUSD_20250608
["ID","MTS","AMOUNT","RATE_DAILY","PERIOD"]
[365002459,1749391831666,-460.45,0.00018512,2]
[365002460,1749391831677,-200.0,0.000187,6]
[365002461,1749391831687,-1876.89,0.000188,2]
[365002462,1749391831698,-500.0,0.000188,6]
[365002463,1749391831709,-1200.0,0.00018888,2]
[365002464,1749391831720,-300.0,0.00018888,2]
[365002465,1749391831731,-1957.856,0.00018889,2]
[365002466,1749391831742,-207.4,0.00018889,2]
[365002467,1749391831752,-300.0,0.00018898,2]
[365002468,1749391831763,-1876.89,0.000189,2]
[365002469,1749391831774,-1876.89,0.000189,2]
[365002470,1749391831785,-800.0,0.000189,6]
[365002471,1749391831797,-745.20225233,0.00018944,2]
[365002472,1749391831810,-1285.09441967,0.00018944,2]
[365002473,1749391831821,-2105.41764886,0.00018999,2]
[365002474,1749391831831,-1876.89,0.00019,2]
[365002475,1749391831842,-1118.88460414,0.00019,2]
[365002476,1749391831855,-758.00539586,0.00019,2]
[365002478,1749391831866,-2073.23943438,0.00019016,30]
[365002480,1749391831878,-2933.31309562,0.00019016,30]
[365002482,1749391831889,-708.02133928,0.00019042,2]
[365002485,1749391831906,-959.8900515,0.00019042,2]
[365002487,1749391831919,-1334.47124233,0.00019042,2]
[365002489,1749391831930,-183.76292512,0.00019054,2]
[365002596,1749391837326,-401.50997972,0.00019054,2]
[365002598,1749391837438,-1043.96,0.00019054,2]
[365002599,1749391837451,-595.43191712,0.00019054,2]
[365002600,1749391837461,-1246.94613784,0.00019078,2]
[365002601,1749391837471,-153.903125,0.0001913,17]
[365002602,1749391837482,-154.605433,0.0001913,17]
[365002603,1749391837493,-154.605433,0.0001913,17]
[365002604,1749391837504,-172.65408418,0.00019152,2]
[365002605,1749391837516,-151.0,0.00019166,2]
[365002606,1749391837527,-1246.94613775,0.00019169,2]
[365002607,1749391837537,-103566.76013035,0.00019177,2]
[365002608,1749391837549,-73.84772236,0.00019178,2]
[365002609,1749391837560,-1770.4762406,0.00019178,2]
[365002610,1749391837570,-1770.4762406,0.00019178,2]
[365002611,1749391837580,-1770.4762406,0.00019178,2]
[365002612,1749391837591,-1770.4762406,0.00019178,2]
[365002613,1749391837601,-1770.4762406,0.00019178,2]
[365002614,1749391837611,-1770.4762406,0.00019178,2]
[365002615,1749391837627,-1770.4762406,0.00019178,2]
[365002616,1749391837639,-1770.4762406,0.00019178,2]
[365002617,1749391837650,-1770.4762406,0.00019178,2]
[365002618,1749391837661,-1770.4762406,0.00019178,2]
[365002619,1749391837672,-1770.4762406,0.00019178,2]
[365002620,1749391837682,-1770.4762406,0.00019178,2]
[365002621,1749391837693,-1770.4762406,0.00019178,2]
[365002622,1749391837705,-1770.4762406,0.00019178,2]
[365002623,1749391837717,-1164.83558639,0.00019178,2]
[365002625,1749391837735,-605.64065421,0.00019178,2]
[365002627,1749391837745,-58.53934579,0.00019178,2]
[365002629,1749391837758,-321.29855508,0.00019178,2]
[365002632,1749391837771,-1390.63833973,0.00019178,2]
[365002634,1749391837782,-1742.81254933,0.00019178,2]
[365002636,1749391837792,-1742.81254933,0.00019178,2]
[365002638,1749391837804,-1742.81254933,0.00019178,2]
[365002640,1749391837814,-1742.81254933,0.00019178,2]
[365002642,1749391837824,-1742.81254933,0.00019178,2]
[365002644,1749391837834,-1742.81254933,0.00019178,2]
[365002646,1749391837844,-1742.81254933,0.00019178,2]
[365002648,1749391837854,-1742.81254933,0.00019178,2]
[365002650,1749391837864,-1742.81254933,0.00019178,2]
[365002652,1749391837874,-1742.81254933,0.00019178,2]
[365002654,1749391837884,-1742.81254933,0.00019178,2]
[365002656,1749391837894,-1742.81254933,0.00019178,2]
[365002658,1749391837904,-1742.81254933,0.00019178,2]
[365002660,1749391837914,-1742.81254933,0.00019178,2]
[365002662,1749391837924,-1742.81254933,0.00019178,2]
[365002664,1749391837934,-1742.81254933,0.00019178,2]
[365002666,1749391837944,-1742.81254933,0.00019178,2]
[365002669,1749391837954,-1742.81254933,0.00019178,2]
[365002671,1749391837964,-1742.81254933,0.00019178,2]
[365002673,1749391837974,-1742.81254933,0.00019178,2]
[365002675,1749391837984,-1742.81254933,0.00019178,2]
[365002677,1749391837994,-1742.81254933,0.00019178,2]
[365002679,1749391838005,-1742.81254933,0.00019178,2]
[365002682,1749391838016,-1742.81254933,0.00019178,2]
[365002684,1749391838026,-1742.81254933,0.00019178,2]
[365002686,1749391838036,-1742.81254933,0.00019178,2]
[365002688,1749391838047,-1742.81254933,0.00019178,2]
[365002690,1749391838058,-1742.81254933,0.00019178,2]
[365002692,1749391838069,-1742.81254933,0.00019178,2]
[365002694,1749391838079,-1042.79772968,0.00019178,2]
[365002696,1749391838092,-700.01481965,0.00019178,2]
[365002698,1749391838103,-1742.81254933,0.00019178,2]
[365002700,1749391838113,-1742.81254932,0.00019178,2]
[365002703,1749391838123,-151.0,0.00019178,2]
[365002705,1749391838133,-151.0,0.00019178,2]
[365002707,1749391838143,-151.0,0.00019178,2]
[365002709,1749391838153,-151.0,0.00019178,2]
[365002711,1749391838164,-151.0,0.00019178,2]
[365002713,1749391838175,-204.630289,0.00019178,2]
[365002715,1749391838184,-480.0,0.00019178,2]
[365002717,1749391838197,-151.0,0.00019178,2]
[365002719,1749391838206,-151.0,0.00019178,2]
[365002721,1749391838215,-151.0,0.00019178,2]
[365002723,1749391838225,-151.0,0.00019178,2]
[365002725,1749391838235,-151.0,0.00019178,2]
[365002727,1749391838244,-151.0,0.00019178,2]
[365002729,1749391838253,-151.0,0.00019178,2]
[365002731,1749391838262,-151.0,0.00019178,2]
[365002766,1749391838588,-151.0,0.00019178,2]
[365002769,1749391838610,-151.0,0.00019178,2]
[365002771,1749391838627,-99.20986469,0.00019178,2]
[365003237,1749391842559,-52.55840731,0.00019178,2]
[365003239,1749391842568,-151.0,0.00019178,2]
[365003241,1749391842577,-151.0,0.00019178,2]
[365003243,1749391842587,-151.0,0.00019178,2]
[365003245,1749391842596,-121.78206574,0.00019178,2]
[365003259,1749391842727,-262.01067089,0.00019178,2]
[365003261,1749391842737,-21.84525728,0.00019178,2]
[365003544,1749391845759,-139.93374672,0.00019178,2]
[365003546,1749391845769,-480.0,0.00019178,2]
[365003547,1749391845778,-151.0,0.00019178,2]
[365003549,1749391845787,-151.0,0.00019178,2]
[365003551,1749391845796,-151.0,0.00019178,2]
[365003553,1749391845808,-151.0,0.00019178,2]
[365003555,1749391845817,-480.0,0.00019178,2]
[365003557,1749391845826,-151.0,0.00019178,2]
[365003559,1749391845836,-151.0,0.00019178,2]
[365003561,1749391845844,-151.0,0.00019178,2]
[365003563,1749391845854,-151.0,0.00019178,2]
[365003565,1749391845862,-151.0,0.00019178,2]
[365003567,1749391845871,-36.66625328,0.00019178,2]
[365003570,1749391845891,-114.33374672,0.00019178,2]
[365003572,1749391845900,-151.0,0.00019178,2]
[365003573,1749391845909,-25.48868545,0.00019178,2]
[365003574,1749391845920,-135.91180255,0.00019178,2]
[365003575,1749391845929,-151.0,0.00019178,2]
[365003576,1749391845938,-151.0,0.00019178,2]
[365003577,1749391845947,-239.01997301,0.00019178,2]
[365003578,1749391845959,-166.292946,0.00019178,2]
[365003579,1749391845968,-166.292946,0.00019178,2]
[365003580,1749391845977,-166.292946,0.00019178,2]
[365003581,1749391845986,-166.292946,0.00019178,2]
[365003582,1749391845995,-166.292946,0.00019178,2]
[365003583,1749391846004,-166.292946,0.00019178,2]
[365003584,1749391846013,-166.292946,0.00019178,2]
[365003586,1749391846023,-166.292946,0.00019178,2]
[365003589,1749391846032,-166.292946,0.00019178,2]
[365003592,1749391846041,-104.72997044,0.00019178,2]
[365003595,1749391846052,-61.56297556,0.00019178,2]
[365003597,1749391846061,-166.292946,0.00019178,2]
[365003599,1749391846071,-166.292946,0.00019178,2]
[365003601,1749391846080,-166.292946,0.00019178,2]
[365003603,1749391846089,-244.79561,0.00019178,2]
[365003605,1749391846098,-166.292946,0.00019178,2]
[365003607,1749391846107,-166.292946,0.00019178,2]
[365003609,1749391846116,-166.292946,0.00019178,2]
[365003611,1749391846125,-480.0,0.00019178,2]
[365003613,1749391846134,-44.66673844,0.00019178,2]
[365003615,1749391846146,-106.33326156,0.00019178,2]
[365003617,1749391846156,-151.0,0.00019178,2]
[365003619,1749391846165,-181.489442,0.00019178,2]
[365003621,1749391846175,-151.0,0.00019178,2]
[365003623,1749391846184,-312.592086,0.00019178,2]
[365003625,1749391846198,-312.592086,0.00019178,2]
[365003627,1749391846207,-312.592086,0.00019178,2]
[365003628,1749391846216,-312.592086,0.00019178,2]
[365003630,1749391846225,-312.592086,0.00019178,2]
[365003632,1749391846235,-312.592086,0.00019178,2]
[365003634,1749391846245,-312.592086,0.00019178,2]
[365003636,1749391846254,-312.592086,0.00019178,2]
[365003638,1749391846263,-312.592086,0.00019178,2]
[365003640,1749391846273,-312.592086,0.00019178,2]
[365003642,1749391846282,-312.592086,0.00019178,2]
[365003644,1749391846291,-312.592086,0.00019178,2]
[365003646,1749391846300,-312.592086,0.00019178,2]
[365003648,1749391846309,-151.0,0.00019178,2]
[365003649,1749391846318,-312.592086,0.00019178,2]
[365003651,1749391846328,-151.0,0.00019178,2]
[365003653,1749391846338,-151.0,0.00019178,2]
[365003655,1749391846348,-154.116566,0.00019178,2]
[365003657,1749391846357,-480.0,0.00019178,2]
[365003658,1749391846366,-151.0,0.00019178,2]
[365003660,1749391846376,-179.180406,0.00019178,2]
[365003661,1749391846385,-289.31665,0.00019178,2]
[365003662,1749391846394,-289.31665,0.00019178,2]
[365003663,1749391846403,-289.31665,0.00019178,2]
[365003664,1749391846412,-289.31665,0.00019178,2]
[365003666,1749391846422,-289.31665,0.00019178,2]
[365003667,1749391846431,-289.31665,0.00019178,2]
[365003669,1749391846440,-289.31665,0.00019178,2]
[365003670,1749391846449,-289.31665,0.00019178,2]
[365003671,1749391846458,-289.31665,0.00019178,2]
[365003672,1749391846468,-151.0,0.00019178,2]
[365003673,1749391846479,-289.31665,0.00019178,2]
[365003674,1749391846488,-289.31665,0.00019178,2]
[365003676,1749391846497,-289.31665,0.00019178,2]
[365003678,1749391846507,-289.31665,0.00019178,2]
[365003679,1749391846516,-289.31665,0.00019178,2]
[365003681,1749391846525,-289.31665,0.00019178,2]
[365003683,1749391846535,-289.31665,0.00019178,2]
[365003685,1749391846545,-289.31665,0.00019178,2]
[365003687,1749391846554,-289.31665,0.00019178,2]
[365003689,1749391846563,-152.031881,0.00019178,2]
[365003691,1749391846572,-151.0,0.00019178,2]
[365003693,1749391846582,-170.00247658,0.00019178,2]
[365003695,1749391846592,-151.0,0.00019178,2]
[365003697,1749391846601,-151.0,0.00019178,2]
[365003699,1749391846610,-151.0,0.00019178,2]
[365003701,1749391846619,-151.0,0.00019178,2]
[365003703,1749391846628,-196.80388,0.00019178,2]
[365003704,1749391846638,-480.0,0.00019178,2]
[365003705,1749391846648,-480.0,0.00019178,2]
[365003706,1749391846658,-480.0,0.00019178,2]
[365003707,1749391846667,-164.32938,0.00019178,2]
[365003708,1749391846677,-164.32938,0.00019178,2]
[365003709,1749391846686,-164.32938,0.00019178,2]
[365003710,1749391846696,-164.32938,0.00019178,2]
[365003711,1749391846707,-164.32938,0.00019178,2]
[365003712,1749391846717,-164.32938,0.00019178,2]
[365003714,1749391846727,-164.32938,0.00019178,2]
[365003715,1749391846736,-164.32938,0.00019178,2]
[365003716,1749391846745,-164.32938,0.00019178,2]
[365003717,1749391846755,-164.32938,0.00019178,2]
[365003718,1749391846972,-164.32938,0.00019178,2]
[365003719,1749391846981,-164.32938,0.00019178,2]
[365003720,1749391846990,-164.32938,0.00019178,2]
[365003721,1749391847000,-1681.17,0.00019178,2]
[365003722,1749391847011,-150.0,0.00019178,2]
[365003723,1749391847022,-151.0,0.00019178,2]
[365003724,1749391847032,-151.0,0.00019178,2]
[365003725,1749391847042,-480.0,0.00019178,2]
[365003726,1749391847052,-500.0,0.00019178,2]
[365003727,1749391847064,-480.0,0.00019178,2]
[365003728,1749391847073,-150.0,0.00019178,2]
[365003729,1749391847083,-480.0,0.00019178,2]
[365003730,1749391847092,-150.0,0.00019178,2]
[365003731,1749391847101,-685.87,0.00019178,2]
[365003732,1749391847110,-537.79575913,0.00019178,2]
[365003733,1749391847120,-151.0,0.00019178,2]
[365003734,1749391847129,-151.0,0.00019178,2]
[365003735,1749391847138,-480.0,0.00019178,2]
[365003736,1749391847147,-151.0,0.00019178,2]
[365003737,1749391847156,-231.2141,0.00019178,2]
[365003738,1749391847166,-878.95,0.00019178,2]
[365003739,1749391847175,-480.0,0.00019178,2]
[365003740,1749391847185,-1327.28,0.00019178,2]
[365003741,1749391847198,-308.64243217,0.00019178,2]
[365003742,1749391847210,-1617.65,0.00019178,2]
[365003743,1749391847221,-480.0,0.00019178,2]
[365003744,1749391847230,-570.15,0.00019178,2]
[365003745,1749391847243,-513.14,0.00019178,2]
[365003746,1749391847254,-480.0,0.00019178,2]
[365003747,1749391847263,-480.0,0.00019178,2]
[365003748,1749391847274,-545.4,0.00019178,2]
[365003749,1749391847284,-480.0,0.00019178,2]
[365003750,1749391847293,-770.82,0.00019178,2]
[365003751,1749391847302,-480.0,0.00019178,2]
[365003752,1749391847311,-480.0,0.00019178,2]
[365003753,1749391847320,-1326.36,0.00019178,2]
[365003754,1749391847330,-480.0,0.00019178,2]
[365003755,1749391847339,-480.0,0.00019178,2]
[365003756,1749391847348,-480.0,0.00019178,2]
[365003757,1749391847358,-480.0,0.00019178,2]
[365003758,1749391847367,-480.0,0.00019178,2]
[365003759,1749391847376,-480.0,0.00019178,2]
[365003760,1749391847385,-480.0,0.00019178,2]
[365003761,1749391847394,-559.25,0.00019178,2]
[365003762,1749391847403,-480.0,0.00019178,2]
[365003763,1749391847413,-480.0,0.00019178,2]
[365003764,1749391847422,-151.0,0.00019178,2]
[365003765,1749391847431,-480.0,0.00019178,2]
[365003766,1749391847441,-273.330658,0.00019178,2]
[365003767,1749391847450,-25008.74,0.00019178,2]
[365003768,1749391847459,-480.0,0.00019178,2]
[365003769,1749391847470,-480.0,0.00019178,2]
[365003770,1749391847479,-480.0,0.00019178,2]
[365003771,1749391847488,-150.0,0.00019178,2]
[365003772,1749391847498,-2425.04,0.00019178,2]
[365003773,1749391847507,-480.0,0.00019178,2]
[365003774,1749391847516,-480.0,0.00019178,2]
[365003775,1749391847526,-150.0,0.00019178,2]
[365003776,1749391847535,-150.0,0.00019178,2]
[365003777,1749391847544,-150.0,0.00019178,2]
[365003778,1749391847553,-1590.69,0.00019178,2]
[365003779,1749391847562,-480.0,0.00019178,2]
[365003780,1749391847572,-151.0,0.00019178,2]
[365003781,1749391847581,-480.0,0.00019178,2]
[365003782,1749391847590,-480.0,0.00019178,2]
[365003783,1749391847600,-480.0,0.00019178,2]
[365003784,1749391847609,-480.0,0.00019178,2]
[365003785,1749391847620,-151.0,0.00019178,2]
[365003786,1749391847629,-480.0,0.00019178,2]
[365003787,1749391847641,-1266.28,0.00019178,2]
[365003788,1749391847652,-150.0,0.00019178,2]
[365003789,1749391847663,-150.0,0.00019178,2]
[365003790,1749391847673,-480.0,0.00019178,2]
[365003791,1749391847682,-480.0,0.00019178,2]
[365003792,1749391847692,-480.0,0.00019178,2]
[365003793,1749391847701,-480.0,0.00019178,2]
[365003794,1749391847861,-480.0,0.00019178,2]
[365003795,1749391847881,-480.0,0.00019178,2]
[365003796,1749391847891,-480.0,0.00019178,2]
[365003797,1749391847900,-480.0,0.00019178,2]
[365003798,1749391847910,-480.0,0.00019178,2]
[365003799,1749391847919,-480.0,0.00019178,2]
[365003800,1749391847929,-822.33,0.00019178,2]
[365003801,1749391847939,-480.0,0.00019178,2]
[365003802,1749391847948,-713.95,0.00019178,2]
[365003803,1749391847957,-480.0,0.00019178,2]
[365003804,1749391847967,-154.278802,0.00019178,2]
[365003805,1749391847976,-2282.71,0.00019178,2]
[365003806,1749391847985,-322.635221,0.00019178,2]
[365003807,1749391847994,-977.14,0.00019178,2]
[365003808,1749391848003,-480.0,0.00019178,2]
[365003809,1749391848013,-957.88,0.000192,2]
[365003810,1749391848023,-208.60790207,0.000192,2]
[365003811,1749391848034,-150.0,0.00019205,2]
[365003812,1749391848044,-500.0,0.00019205,2]
[365003813,1749391848054,-205.1569122,0.00019205,2]
[365003814,1749391848063,-150.0,0.00019205,2]
[365003815,1749391848073,-150.0,0.00019205,2]
[365003816,1749391848082,-750.59,0.00019206,2]
[365003817,1749391848091,-200.0,0.00019233,2]
[365003818,1749391848101,-244.0,0.00019233,2]
[365003819,1749391848110,-200.0,0.00019233,2]
[365003820,1749391848120,-200.0,0.00019233,2]
[365003821,1749391848129,-22182.9694,0.00019242,2]
[365003822,1749391848138,-151.0,0.00019252,2]
[365003823,1749391848147,-166.292946,0.00019252,2]
[365003824,1749391848157,-166.292946,0.00019252,2]
[365003825,1749391848166,-206.0,0.0001926,2]
[365003826,1749391848176,-1246.94613775,0.00019261,2]
[365003827,1749391848185,-1999.0,0.00019266,2]
[365003828,1749391848197,-454.91,0.00019266,2]
[365003829,1749391848207,-1274.0,0.00019266,2]
[365003830,1749391848217,-312.592086,0.000193,2]
[365003831,1749391848226,-312.592077,0.000193,2]
[365003832,1749391848235,-289.31665,0.000193,2]
[365003833,1749391848246,-289.316651,0.000193,2]
[365003834,1749391848255,-164.32938,0.00019315,2]
[365003835,1749391848264,-164.329376,0.00019315,2]
[365003836,1749391848274,-158.31,0.00019332,2]
[365003837,1749391848284,-158.31,0.00019332,2]
[365003838,1749391848293,-213.47102298,0.00019332,2]
[365003839,1749391848302,-500.0,0.00019341,2]
[365003840,1749391848311,-500.0,0.00019341,2]
[365003841,1749391848320,-266.17054849,0.00019342,2]
[365003842,1749391848329,-21350.25376499,0.00019342,2]
[365003843,1749391848343,-5013.03281276,0.00019342,2]
[365003844,1749391848354,-4343.09858,0.00019342,2]
[365003845,1749392395408,443.47,0.00016368,2]
[365003846,1749392731540,206.34,0.00013699,2]
[365003848,1749392891662,201.0,0.00016781,2]
[365003858,1749393011876,207.0,0.00016781,2]
[365003859,1749393028782,500.0,0.00016164,2]
[365003865,1749393031532,-274.1118893,0.0001825,2]
[365003866,1749393031543,-25.8881107,0.0001825,2]
[365003867,1749393031553,-561.0008893,0.0001825,2]
[365003868,1749393031653,-122.9991107,0.0001825,2]
[365003869,1749393031666,-300.0,0.0001825,2]
[365003870,1749393031676,-250.0,0.0001825,2]
[365003871,1749393031685,-6258.20149089,0.00018251,2]
[365003872,1749393031697,-355.80762496,0.00018251,2]
[365003873,1749393031827,-1893.31631357,0.00018251,2]
[365003874,1749393031839,-704.1835659,0.00018251,2]
[365003875,1749393031850,-310.31,0.00018251,2]
[365004207,1749393037540,-611.68100468,0.00018251,2]
[365004209,1749393037551,-1000.0,0.00018408,2]
[365004211,1749393037561,-443.47,0.00018632,2]
[365004213,1749393037570,-250.0,0.00019,2]
[365004215,1749393037580,-643.38,0.00019041,2]
[365004217,1749393037589,-214.45,0.00019042,2]
[365004219,1749393037598,-1200.0,0.000191,6]
[365004221,1749393037613,-207.4,0.00019165,2]
[365004223,1749393037623,-150.0,0.00019166,2]
[365004224,1749393037632,-151.0,0.00019166,2]
[365004225,1749393037642,-500.0,0.00019166,2]
[365004226,1749393037652,-500.0,0.00019166,2]
[365004227,1749393037664,-281.91730621,0.00019166,2]
[365004228,1749393037674,-500.0,0.00019166,2]
[365004229,1749393037683,-500.0,0.00019166,2]
[365004230,1749393037692,-500.0,0.00019166,2]
[365004231,1749393037702,-784.07129256,0.00019166,2]
[365004232,1749393037712,-500.0,0.00019166,2]
[365004233,1749393037722,-500.0,0.00019166,2]
[365004234,1749393037731,-509.0026331,0.00019166,2]
[365004235,1749393037741,-151.0,0.00019166,2]
[365004236,1749393037751,-151.0,0.00019166,2]
[365004237,1749393037761,-151.0,0.00019166,2]
[365004238,1749393037770,-151.0,0.00019166,2]
[365004239,1749393037779,-290.0,0.00019166,2]
[365004240,1749393037788,-151.19,0.00019176,2]
[365004241,1749393037798,-152.33,0.00019177,2]
[365004242,1749393037807,-150.37,0.00019177,2]
[365004243,1749393037816,-150.75,0.00019177,2]
[365004244,1749393037826,-151.49,0.00019177,2]
[365004245,1749393037836,-152.54,0.00019177,2]
[365004246,1749393037845,-176.63,0.00019177,2]
[365004247,1749393037855,-500.0,0.00019177,2]
[365004248,1749393037867,-371.56721226,0.00019177,2]
[365004249,1749393037876,-500.0,0.00019177,2]
[365004250,1749393037886,-180.85129124,0.00019177,2]
[365004251,1749393037895,-500.0,0.00019178,2]
[365004253,1749393037905,-500.0,0.00019178,2]
[365004255,1749393037914,-500.0,0.00019178,2]
[365004257,1749393037923,-500.0,0.00019178,2]
[365004259,1749393037933,-500.0,0.00019178,2]
[365004261,1749393037942,-500.0,0.00019178,2]
[365004263,1749393037951,-500.0,0.00019178,2]
[365004265,1749393037960,-500.0,0.00019178,2]
[365004267,1749393037969,-500.0,0.00019178,2]
[365004269,1749393037978,-500.0,0.00019178,2]
[365004271,1749393037988,-500.0,0.00019178,2]
[365004272,1749393037997,-500.0,0.00019178,2]
[365004275,1749393038006,-500.0,0.00019178,2]
[365004278,1749393038015,-500.0,0.00019178,2]
[365004280,1749393038024,-500.0,0.00019178,2]
[365004282,1749393038034,-500.0,0.00019178,2]
[365004284,1749393038043,-500.0,0.00019178,2]
[365004286,1749393038052,-637.57185709,0.00019178,2]
[365004288,1749393038061,-500.0,0.00019178,2]
[365004290,1749393038070,-500.0,0.00019178,2]
[365004292,1749393038079,-500.0,0.00019178,2]
[365004294,1749393038089,-500.0,0.00019178,2]
[365004296,1749393038098,-500.0,0.00019178,2]
[365004298,1749393038107,-500.0,0.00019178,2]
[365004300,1749393038117,-500.0,0.00019178,2]
[365004302,1749393038126,-500.0,0.00019178,2]
[365004304,1749393038135,-500.0,0.00019178,2]
[365004306,1749393038144,-500.0,0.00019178,2]
[365004308,1749393038152,-500.0,0.00019178,2]
[365004310,1749393038160,-322.635222,0.00019178,2]
[365004312,1749393038169,-500.0,0.00019178,2]
[365004314,1749393038177,-1080.833415,0.00019178,2]
[365004316,1749393038186,-480.0,0.00019178,2]
[365004318,1749393038195,-500.0,0.00019178,2]
[365004319,1749393038204,-480.0,0.00019178,2]
[365004321,1749393038213,-480.0,0.00019178,2]
[365004323,1749393038222,-480.0,0.00019178,2]
[365004325,1749393038232,-480.0,0.00019178,2]
[365004327,1749393038242,-480.0,0.00019178,2]
[365004329,1749393038251,-480.0,0.00019178,2]
[365004331,1749393038261,-480.0,0.00019178,2]
[365004333,1749393038270,-480.0,0.00019178,2]
[365004335,1749393038279,-480.0,0.00019178,2]
[365004337,1749393038288,-1271.97,0.00019178,2]
[365004339,1749393038297,-480.0,0.00019178,2]
[365004341,1749393038306,-546.39,0.00019178,2]
[365004343,1749393038315,-280.24664816,0.00019178,2]
[365004345,1749393038324,-480.0,0.00019178,2]
[365004347,1749393038333,-480.0,0.00019178,2]
[365004349,1749393038343,-480.0,0.00019178,2]
[365004351,1749393038352,-480.0,0.00019178,2]
[365004353,1749393038362,-1550.25,0.00019178,2]
[365004355,1749393038371,-738.7,0.00019178,2]
[365004357,1749393038380,-480.0,0.00019178,2]
[365004359,1749393038389,-480.0,0.00019178,2]
[365004361,1749393038399,-607.80412362,0.00019178,2]
[365004363,1749393038408,-522.67,0.00019178,2]
[365004365,1749393038417,-480.0,0.00019178,2]
[365004367,1749393038426,-480.0,0.00019178,2]
[365004369,1749393038435,-480.0,0.00019178,2]
[365004371,1749393038444,-480.0,0.00019178,2]
[365004373,1749393038453,-480.0,0.00019178,2]
[365004374,1749393038462,-27539.39,0.00019178,2]
[365004376,1749393038471,-480.0,0.00019178,2]
[365004378,1749393038480,-480.0,0.00019178,2]
[365004380,1749393038489,-151.0,0.00019178,2]
[365004382,1749393038498,-151.0,0.00019178,2]
[365004384,1749393038507,-480.0,0.00019178,2]
[365004386,1749393038516,-520.0,0.00019178,2]
[365004388,1749393038526,-2324.0,0.00019178,2]
[365004390,1749393038534,-480.0,0.00019178,2]
[365004392,1749393038544,-1713.23,0.00019178,2]
[365004394,1749393038553,-480.0,0.00019178,2]
[365004396,1749393038562,-1524.42,0.00019178,2]
[365004398,1749393038571,-480.0,0.00019178,2]
[365004400,1749393038580,-480.0,0.00019178,2]
[365004402,1749393038589,-480.0,0.00019178,2]
[365004404,1749393038598,-480.0,0.00019178,2]
[365004406,1749393038607,-535.95,0.00019178,2]
[365004408,1749393038617,-480.0,0.00019178,2]
[365004409,1749393038626,-480.0,0.00019178,2]
[365004411,1749393038635,-480.0,0.00019178,2]
[365004413,1749393038644,-480.0,0.00019178,2]
[365004415,1749393038653,-480.0,0.00019178,2]
[365004417,1749393038666,-480.0,0.00019178,2]
[365004419,1749393038675,-1213.52,0.00019178,2]
[365004421,1749393038684,-684.2,0.00019178,2]
[365004423,1749393038693,-480.0,0.00019178,2]
[365004425,1749393038703,-480.0,0.00019178,2]
[365004427,1749393038712,-788.07,0.00019178,2]
[365004429,1749393038721,-161.82437861,0.00019178,2]
[365004431,1749393038730,-936.43,0.00019178,2]
[365004433,1749393038739,-480.0,0.00019178,2]
[365004434,1749393038749,-480.0,0.00019178,2]
[365004436,1749393038758,-480.0,0.00019178,2]
[365004438,1749393038767,-480.0,0.00019178,2]
[365004440,1749393038776,-2187.6,0.00019178,2]
[365004442,1749393038785,-1342.6,0.00019178,2]
[365004445,1749393038798,-480.0,0.00019178,2]
[365004447,1749393038809,-480.0,0.00019178,2]
[365004449,1749393038821,-270.24715624,0.00019178,2]
[365004451,1749393038834,-480.0,0.00019178,2]
[365004454,1749393038845,-209.67202772,0.00019178,2]